bitfinex/quotes_ETHUSD_20251218
["timestamp","ask_amount","ask_price","bid_price","bid_amount"]
[1766042774454,1.02038023,2841.5,2841.0,0.001]
[1766042774639,0.556,2841.5,2841.0,2.5146]
[1766042775968,0.556,2841.5,2841.1,2.5136]
[1766042776361,1.02038023,2841.6,2841.1,2.5136]
[1766042778172,2.2502683,2841.6,2841.1,2.5136]
[1766042779170,2.2502683,2841.6,2841.0,0.001]
[1766042779372,1.02038023,2841.6,2841.1,2.5136]
[1766042779542,0.46438023,2841.6,2841.1,2.5136]
[1766042779742,1.02038023,2841.6,2841.0,2.5146]
[1766042780677,1.02238023,2841.6,2841.0,2.5146]
[1766042781677,1.02238023,2841.6,2841.0,0.001]
[1766042781875,1.02238023,2841.6,2841.0,2.5146]
[1766042782080,1.02238023,2841.6,2841.1,2.5136]
[1766042782371,1.02238023,2841.6,2841.0,0.001]
[1766042782573,0.46638023,2841.6,2841.0,0.001]
[1766042782742,1.02238023,2841.6,2841.0,0.001]
[1766042782943,1.02238023,2841.6,2841.2,1.0968]
[1766042783177,1.12430436,2841.5,2841.1,2.5136]
[1766042783348,1.02238023,2841.6,2841.1,2.5136]
[1766042786283,0.002,2841.6,2841.1,1.4168]
[1766042786448,0.002,2841.6,2841.5,2.5136]
[1766042786975,0.002,2841.6,2841.1,3.51975264]
[1766042787177,0.002,2841.6,2841.3,2.5136]
[1766042788387,0.002,2841.6,2841.2,2.5136]
[1766042788547,0.002,2841.6,2841.0,2.5146]
[1766042788751,0.002,2841.6,2841.1,2.5136]
[1766042789059,0.002,2841.6,2841.0,0.001]
[1766042789257,0.002,2841.6,2841.2,2.5136]
[1766042790351,0.002,2841.6,2841.1,2.8657994]
[1766042790680,0.002,2841.6,2841.1,0.3521994]
[1766042790881,0.002,2841.6,2841.0,2.5146]
[1766042791070,0.002,2841.6,2841.0,0.001]
[1766042791274,0.002,2841.6,2841.1,2.5136]
[1766042792088,0.002,2841.6,2841.0,0.001]
[1766042792788,0.002,2841.6,2841.0,2.5146]
[1766042794169,0.002,2841.6,2841.0,3.1181713]
[1766042795489,0.002,2841.6,2841.0,2.5146]
[1766042798184,0.002,2841.6,2841.0,0.001]
[1766042798400,0.002,2841.6,2841.0,2.5146]
[1766042798699,0.002,2841.6,2841.0,0.001]
[1766042798876,0.002,2841.6,2841.1,2.5136]
[1766042799271,0.558,2841.6,2841.0,0.001]
[1766042799899,1.47650932,2841.6,2841.0,0.001]
[1766042804411,0.46438023,2841.4,2840.9,0.001]
[1766042804720,2.53440252,2841.6,2840.9,0.001]
[1766042804876,0.002,2841.6,2841.0,1.7879]
[1766042805069,0.002,2841.6,2841.2,1.7879]
[1766042805490,0.002,2841.6,2841.0,1.7889]
[1766042806494,0.46638023,2841.6,2841.0,1.7889]
[1766042806695,7.16801643,2841.6,2840.7,0.001]
[1766042806901,7.16801643,2841.6,2840.8,0.556]
[1766042806902,7.62216081,2841.6,2840.8,0.556]
[1766042807599,0.92052461,2841.6,2840.8,0.556]
[1766042807807,0.92052461,2841.6,2840.8,2.3439]
[1766042808101,4.4396697,2841.6,2840.8,2.3439]
[1766042810802,1.0811501,2841.5,2840.8,0.556]
[1766042811802,0.46438023,2841.4,2840.7,0.001]
[1766042811997,7.72201643,2841.4,2840.8,1.7879]
[1766042812194,1.02038023,2841.4,2840.8,1.7879]
[1766042812705,0.556,2841.4,2840.8,1.7879]
[1766042812917,0.556,2841.4,2840.8,0.17899]
[1766042812918,0.46438023,2841.4,2840.8,0.17899]
[1766042813101,0.002,2841.6,2840.8,3.52012757]
[1766042813275,0.002,2841.6,2841.0,0.9503]
[1766042813477,0.002,2841.6,2841.2,1.7879]
[1766042815279,0.002,2841.6,2840.9,1.7879]
[1766042815490,0.002,2841.6,2841.0,0.53512601]
[1766042815691,0.002,2841.6,2841.1,1.7879]
[1766042816409,0.002,2841.6,2841.0,0.53512601]
[1766042816626,0.46638023,2841.6,2841.1,1.7879]
[1766042820385,0.002,2841.6,2841.1,1.7879]
[1766042821210,0.46638023,2841.6,2841.0,0.001]
[1766042821512,3.98552824,2841.6,2841.0,0.001]
[1766042821816,1.12431644,2841.5,2841.0,0.001]
[1766042822212,4.54152824,2841.6,2841.0,0.001]
[1766042822213,0.558,2841.6,2841.0,0.001]
[1766042822413,0.558,2841.6,2841.0,1.7889]
[1766042826021,4.07718294,2841.6,2841.0,0.001]
[1766042826513,0.002,2841.6,2841.0,0.001]
[1766042826725,0.558,2841.6,2841.0,1.7889]
[1766042827422,1.33034734,2841.6,2841.0,1.7889]
[1766042827789,0.46438023,2841.5,2841.0,1.7889]
[1766042828321,4.29351839,2841.6,2841.0,1.7889]
[1766042829530,0.77434734,2841.6,2841.0,1.7889]
[1766042829715,4.29352483,2841.6,2841.0,1.7889]
[1766042830227,0.77434734,2841.6,2841.0,1.7889]
[1766042831004,0.77434734,2841.6,2841.0,0.001]
[1766042831206,0.002,2841.6,2841.1,1.4943]
[1766042831405,0.002,2841.6,2841.0,0.001]
[1766042831606,0.002,2841.6,2841.1,1.4943]
[1766042831807,0.002,2841.6,2841.2,0.5263]
[1766042832107,0.002,2841.6,2841.2,1.4718]
[1766042833306,1.12625123,2841.6,2841.2,1.4718]
[1766042833839,0.002,2841.6,2841.2,1.4718]
[1766042835534,0.002,2841.6,2841.0,1.4561]
[1766042836838,0.002,2841.6,2841.0,0.001]
[1766042837053,0.002,2841.6,2840.8,0.001]
[1766042837212,1.47613349,2841.5,2840.8,0.001]
[1766042837550,3.98395195,2841.3,2840.7,0.001]
[1766042837742,4.53995195,2841.3,2840.7,0.001]
[1766042838343,0.556,2841.3,2840.7,0.001]
[1766042838540,0.556,2841.3,2840.8,1.4551]
[1766042838742,0.46438023,2841.2,2840.7,0.001]
[1766042838911,0.46438023,2841.2,2840.7,1.4561]
[1766042839343,0.46438023,2841.2,2840.7,0.001]
[1766042839751,3.519654,2841.2,2840.7,0.001]
[1766042840619,5.15564919,2841.3,2840.7,0.001]
[1766042840940,0.8675054,2841.2,2840.7,0.001]
[1766042841944,0.8675054,2841.2,2840.7,1.4561]
[1766042842450,0.556,2841.3,2841.0,1.4551]
[1766042842744,0.556,2841.3,2840.9,0.5096]
[1766042843318,0.556,2841.3,2840.9,1.4551]
[1766042844451,3.98382347,2841.4,2840.9,1.4551]
[1766042844756,4.53982347,2841.4,2840.9,1.4551]
[1766042845053,6.16363434,2841.4,2840.9,1.4551]
[1766042847355,6.16363434,2841.4,2840.7,0.001]
[1766042847646,6.16363434,2841.4,2840.7,1.4561]
[1766042849429,6.16363434,2841.4,2840.8,1.4551]
[1766042850456,2.17981087,2841.4,2840.8,1.4551]
[1766042850838,0.46438023,2841.3,2840.8,1.4551]
[1766042854141,0.46438023,2841.3,2840.7,0.001]
[1766042854344,0.46438023,2841.3,2840.8,1.4551]
[1766042854765,0.46438023,2841.3,2840.7,0.001]
[1766042854932,0.46438023,2841.3,2840.8,1.4551]
[1766042855460,0.46438023,2841.3,2840.7,0.001]
[1766042855762,0.46438023,2841.3,2840.7,0.9465]
[1766042855941,0.46438023,2841.3,2840.8,1.4551]
[1766042856449,0.46438023,2841.3,2840.7,0.001]
[1766042856665,0.46438023,2841.3,2840.8,1.4551]
[1766042856841,0.46438023,2841.3,2840.7,0.001]
[1766042857045,4.53971013,2841.5,2840.9,0.5096]
[1766042857233,1.4902756,2841.4,2840.8,1.4551]
[1766042857443,1.4902756,2841.4,2840.8,0.9455]
[1766042857643,1.4902756,2841.4,2840.9,1.4551]
[1766042857948,1.4902756,2841.4,2840.7,0.001]
[1766042858130,1.4902756,2841.4,2841.0,0.9455]
[1766042858331,0.60299857,2841.3,2840.8,1.4551]
[1766042858556,1.02038023,2841.5,2841.0,0.9455]
[1766042858733,0.002,2841.3,2840.7,0.001]
[1766042858935,0.002,2841.3,2841.0,0.9455]
[1766042859133,0.002,2841.3,2841.2,1.4551]
[1766042859968,0.002,2841.3,2840.7,0.557]
[1766042860168,0.002,2841.3,2840.8,1.4551]
[1766042860766,0.002,2841.3,2840.7,0.96907427]
[1766042860955,0.002,2841.3,2840.9,0.5096]
[1766042861151,0.002,2841.3,2841.0,1.4551]
[1766042861356,0.002,2841.3,2840.7,0.96907427]
[1766042861667,0.002,2841.3,2841.0,0.5096]
[1766042861837,0.002,2841.3,2841.1,1.4551]
[1766042862546,0.002,2841.3,2840.8,1.325]
[1766042864537,0.002,2841.3,2840.7,0.557]
[1766042864860,0.002,2841.3,2840.9,1.325]
[1766042865164,0.002,2841.3,2840.8,1.325]
[1766042865654,0.002,2841.3,2840.8,0.9671]
[1766042865830,0.002,2841.3,2840.8,1.325]
[1766042866482,0.46438023,2841.2,2840.7,0.557]
[1766042866687,0.46438023,2841.2,2840.7,1.882]
[1766042866972,0.46438023,2841.2,2840.8,1.325]
[1766042867577,1.17044167,2841.3,2840.8,1.325]
[1766042867741,0.70606144,2841.3,2840.7,0.557]
[1766042867943,0.70606144,2841.3,2840.8,0.9671]
[1766042868176,0.46638023,2841.3,2840.8,1.325]
[1766042868364,0.46638023,2841.3,2840.7,0.557]
[1766042868876,0.46638023,2841.3,2840.9,0.3579]
[1766042869071,0.46638023,2841.3,2840.7,0.557]
[1766042870455,3.52154023,2841.3,2840.7,0.557]
[1766042870681,0.46438023,2841.2,2840.7,0.557]
[1766042871581,0.46438023,2841.2,2840.6,0.001]
[1766042875253,0.002,2841.3,2840.6,0.04324906]
[1766042876271,0.002,2841.3,2840.6,1.36824906]
[1766042876472,0.40057853,2841.3,2840.6,1.36824906]
[1766042876693,0.40057853,2841.3,2840.6,1.326]
[1766042877195,4.3844846,2841.3,2840.6,0.001]
[1766042877687,0.40057853,2841.3,2840.6,0.001]
[1766042877889,0.40057853,2841.3,2840.6,1.326]
[1766042878693,0.46438023,2841.2,2840.6,1.326]
[1766042878862,0.86495876,2841.3,2840.6,1.326]
[1766042880363,0.86495876,2841.3,2840.6,0.001]
[1766042880563,0.86495876,2841.3,2840.7,1.325]
[1766042880776,0.43844089,2841.2,2840.7,1.325]
[1766042880976,0.40057853,2841.3,2840.7,1.325]
[1766042881466,0.86495876,2841.3,2840.7,1.325]
[1766042882273,0.86495876,2841.3,2840.6,0.001]
[1766042885802,0.46438023,2841.2,2840.6,0.001]
[1766042886015,0.46438023,2841.2,2840.5,0.557]
[1766042887071,0.40057853,2841.3,2840.5,0.557]
[1766042887273,0.95852147,2841.2,2840.5,0.001]
[1766042888104,2.01456873,2841.3,2840.5,0.001]
[1766042888105,0.86495876,2841.3,2840.5,0.001]
[1766042888393,0.46638023,2841.3,2840.5,0.001]
[1766042888569,0.002,2841.3,2840.6,1.325]
[1766042888770,0.002,2841.3,2840.5,0.001]
[1766042889073,0.002,2841.3,2840.6,1.325]
[1766042889769,0.46638023,2841.3,2840.6,1.325]
[1766042893077,0.46638023,2841.3,2840.6,0.9922]
[1766042893274,0.46638023,2841.3,2840.7,0.366]
[1766042893606,0.46638023,2841.3,2840.7,1.3582]
[1766042894805,1.59514817,2841.3,2840.5,1.3592]
[1766042895005,0.46638023,2841.3,2840.6,1.3582]
[1766042896703,0.46638023,2841.3,2840.7,0.366]
[1766042897005,0.46638023,2841.3,2840.7,1.3582]
[1766042898486,0.46638023,2841.3,2840.5,0.001]
[1766042898880,0.46638023,2841.3,2840.6,1.3582]
[1766042899077,0.46638023,2841.3,2840.5,0.001]
[1766042899277,0.46638023,2841.3,2840.6,1.3582]
[1766042899591,0.46638023,2841.3,2840.7,0.366]
[1766042899786,0.46638023,2841.3,2840.5,0.001]
[1766042899995,0.46638023,2841.3,2840.7,1.3582]
[1766042900305,1.59514629,2841.3,2840.5,0.001]
[1766042900501,1.59514629,2841.3,2840.6,1.3582]
[1766042900682,1.59514629,2841.3,2840.5,0.001]
[1766042900877,1.59514629,2841.3,2840.7,0.366]
[1766042901082,1.59514629,2841.3,2840.8,1.3582]
[1766042901487,1.59514629,2841.3,2840.6,1.3582]
[1766042901684,1.59514629,2841.3,2840.5,0.001]
[1766042901884,0.46638023,2841.3,2840.7,0.366]
[1766042902081,0.46638023,2841.3,2840.9,0.366]
[1766042902281,0.46638023,2841.3,2840.9,1.3582]
[1766042903584,0.46638023,2841.3,2840.5,0.001]
[1766042903785,0.46638023,2841.3,2840.6,1.3582]
[1766042904018,0.46638023,2841.3,2840.5,0.001]
[1766042904214,0.46638023,2841.3,2840.6,1.3582]
[1766042904511,0.46638023,2841.3,2840.5,0.41309573]
[1766042904714,0.46638023,2841.3,2840.6,1.3582]
[1766042904907,0.46638023,2841.3,2840.7,0.366]
[1766042905221,0.46638023,2841.3,2840.8,1.3582]
[1766042905421,1.59513917,2841.3,2840.8,1.3582]
[1766042905794,1.13075894,2841.3,2840.8,1.3582]
[1766042906889,1.13075894,2841.3,2840.5,1.3592]
[1766042907090,0.46438023,2841.2,2840.5,0.001]
[1766042907389,1.13075894,2841.3,2840.6,1.3582]
[1766042908010,1.13075894,2841.3,2840.8,0.9922]
[1766042908224,0.002,2841.6,2840.7,0.366]
[1766042908391,0.46638023,2841.6,2841.2,0.9922]
[1766042908721,0.46638023,2841.6,2840.9,0.9922]
[1766042909020,0.46638023,2841.6,2841.2,1.3582]
[1766042909419,0.46638023,2841.6,2840.8,0.556]
[1766042909600,0.46638023,2841.6,2841.1,0.366]
[1766042909803,0.46638023,2841.6,2841.3,1.3582]
[1766042913495,0.46638023,2841.6,2840.8,0.556]
[1766042913804,0.46638023,2841.6,2840.9,1.3582]
[1766042913995,0.46638023,2841.6,2840.8,0.556]
[1766042914320,0.46638023,2841.6,2840.9,1.3582]
[1766042914525,0.46638023,2841.6,2841.1,1.3582]
[1766042915216,0.46638023,2841.6,2841.0,0.19142]
[1766042915398,0.46638023,2841.6,2841.1,1.3582]
[1766042915936,0.46638023,2841.6,2840.8,0.556]
[1766042916414,0.46638023,2841.6,2840.9,0.9922]
[1766042916595,0.46638023,2841.6,2841.1,0.9922]
[1766042916796,0.46638023,2841.6,2841.1,1.3582]
[1766042917124,0.46638023,2841.6,2840.9,0.9922]
[1766042917125,3.98552517,2841.6,2840.9,0.9922]
[1766042917321,0.46438023,2841.4,2840.9,1.3582]
[1766042917523,0.46438023,2841.4,2840.8,0.556]
[1766042917820,0.46438023,2841.4,2841.0,1.3582]
[1766042918230,0.46638023,2841.6,2840.8,0.556]
[1766042918444,0.46638023,2841.6,2840.9,1.3582]
[1766042918728,1.99286548,2841.6,2841.0,0.366]
[1766042918891,1.99286548,2841.6,2841.1,1.3582]
[1766042919098,1.52848525,2841.6,2840.8,0.556]
[1766042919402,0.002,2841.6,2840.8,0.556]
[1766042919609,0.002,2841.6,2841.0,0.366]
[1766042919799,0.002,2841.6,2841.2,0.366]
[1766042919999,0.002,2841.6,2841.2,1.3582]
[1766042921023,0.002,2841.6,2840.8,0.556]
[1766042921203,0.002,2841.6,2841.3,0.9922]
[1766042921527,0.46438023,2841.7,2840.8,0.556]
[1766042921729,0.46438023,2841.7,2841.1,0.366]
[1766042922030,0.46438023,2841.7,2841.3,1.2838]
[1766042922333,1.02038023,2841.8,2841.4,0.9178]
[1766042922510,4.53927719,2841.8,2841.5,1.2613]
[1766042922710,6.11455381,2841.8,2841.0,1.2613]
[1766042923030,4.53927719,2841.8,2841.3,0.3435]
[1766042923326,4.53927719,2841.8,2841.4,0.9178]
[1766042923535,4.53927719,2841.8,2841.4,1.2613]
[1766042925447,4.54127719,2841.8,2841.4,1.2613]
[1766042927349,3.98527719,2841.8,2841.4,1.2613]
[1766042927538,0.50430622,2841.7,2841.4,1.2613]
[1766042929442,0.50430622,2841.7,2841.3,1.2613]
[1766042929742,3.98527719,2841.8,2841.4,1.2613]
[1766042930042,3.98527719,2841.8,2841.3,1.2613]
[1766042931830,3.98527719,2841.8,2841.2,6.70263279]
[1766042932032,3.98527719,2841.8,2841.3,0.9178]
[1766042932233,3.98527719,2841.8,2841.5,0.9178]
[1766042932436,4.89704904,2841.8,2841.5,1.2613]
[1766042933648,4.89704904,2841.8,2841.2,6.70263279]
[1766042933942,3.98527719,2841.8,2841.6,1.2613]
[1766042934245,3.98527719,2841.8,2841.6,0.9178]
[1766042934447,3.98527719,2841.8,2841.7,1.2613]
[1766042934846,0.002,2842.5,2841.7,6.70263279]
[1766042935043,3.51852503,2842.1,2841.7,6.70263279]
[1766042935244,3.51852503,2842.1,2841.9,1.2613]
[1766042935547,4.22242058,2842.1,2841.8,1.40231662]
[1766042935950,3.51852503,2842.1,2841.9,1.2613]
[1766042936152,3.51852503,2842.1,2841.8,0.14101662]
[1766042936320,0.002,2842.2,2842.0,0.3435]
[1766042936519,0.002,2842.2,2842.0,1.2613]
[1766042936935,0.46638023,2842.2,2842.0,1.2613]
[1766042937142,1.27248096,2842.2,2842.0,1.2613]
[1766042938152,1.27248096,2842.2,2842.1,0.9178]
[1766042938352,1.27248096,2842.2,2842.1,1.2613]
[1766042938648,4.79088219,2842.2,2842.0,1.2613]
[1766042939665,11.82768465,2842.2,2841.1,0.3435]
[1766042939959,3.93113733,2842.1,2841.4,0.9178]
[1766042940119,3.93113733,2842.1,2841.7,0.3435]
[1766042940323,2.07810559,2842.1,2841.8,1.2613]
[1766042940524,0.46438023,2841.9,2841.8,1.2613]
[1766042941150,3.51864883,2842.0,2841.2,6.70263279]
[1766042941334,3.51864883,2842.0,2841.3,1.2613]
[1766042941546,7.03729766,2842.0,2841.2,6.70263279]
[1766042941719,3.51864883,2842.0,2841.4,1.2613]
[1766042941925,3.51864883,2842.0,2841.7,0.3435]
[1766042942160,3.51864883,2842.0,2841.9,1.2613]
[1766042942341,0.002,2842.2,2841.2,6.70263279]
[1766042942547,3.52040123,2842.2,2841.3,0.3435]
[1766042942747,7.90432488,2842.2,2841.5,0.9178]
[1766042942942,7.90432488,2842.2,2841.9,1.2613]
[1766042943171,0.46438023,2842.1,2841.9,0.3435]
[1766042944868,3.51854396,2842.1,2841.9,0.9178]
[1766042945058,3.51854396,2842.1,2842.0,0.3435]
[1766042945635,3.51854396,2842.1,2841.9,0.9178]
[1766042945835,3.51854396,2842.1,2841.9,1.2613]
[1766042946037,3.51854396,2842.1,2841.9,0.3435]
[1766042946879,3.98302906,2842.0,2841.9,0.3435]
[1766042947230,3.98302906,2842.0,2841.7,0.9178]
[1766042947435,3.98302906,2842.0,2841.5,0.556]
[1766042947436,4.95412906,2842.0,2841.6,0.3435]
[1766042947634,4.95412906,2842.0,2841.7,0.3435]
[1766042948332,4.95412906,2842.0,2841.7,1.2613]
[1766042949242,0.46438023,2842.0,2841.9,0.9178]
[1766042949447,3.52056415,2842.1,2842.0,0.3435]
[1766042950069,0.002,2842.1,2842.0,0.3435]
[1766042950631,3.52052503,2842.1,2842.0,0.3435]
[1766042951338,3.98490526,2842.1,2842.0,0.3435]
[1766042956668,3.60990526,2842.1,2842.0,1.2441]
[1766042956969,0.46638023,2842.2,2841.5,1.4738]
[1766042957370,0.46638023,2842.2,2841.8,0.368]
[1766042957571,0.46638023,2842.2,2842.0,0.368]
[1766042957776,3.98290526,2842.1,2842.0,0.368]
[1766042957939,0.002,2842.2,2842.0,0.368]
[1766042958271,3.52041145,2842.2,2842.1,0.368]
[1766042958673,3.52041145,2842.2,2841.9,0.094]
[1766042958874,3.52041145,2842.2,2842.0,0.368]
[1766042960575,0.002,2842.2,2842.1,0.368]
[1766042960867,3.98271854,2842.3,2842.1,0.368]
[1766042961066,3.52018401,2842.4,2842.2,0.368]
[1766042961271,3.52018401,2842.4,2842.1,0.368]
[1766042961773,4.51958401,2842.4,2842.1,0.368]
[1766042962574,3.52018401,2842.4,2842.1,0.368]
[1766042962776,3.52005816,2842.5,2842.2,0.094]
[1766042962974,0.46438023,2842.4,2841.9,0.556]
[1766042963345,0.46438023,2842.4,2842.0,0.001]
[1766042963668,0.46438023,2842.3,2842.0,0.001]
[1766042964056,0.9994,2842.2,2842.0,0.001]
[1766042964262,1.3587,2842.2,2842.0,0.001]
[1766042964777,1.0014,2842.2,2842.0,0.001]
[1766042964983,3.52040123,2842.2,2842.0,0.001]
[1766042967173,0.002,2842.5,2842.0,0.001]
[1766042967374,3.51815367,2842.4,2842.0,0.001]
[1766042967578,0.46438023,2842.3,2842.0,0.001]
[1766042968079,0.46438023,2842.3,2841.9,0.556]
[1766042968279,1.82108023,2842.3,2841.9,0.556]
[1766042968458,0.46438023,2842.3,2841.9,0.556]
[1766042969288,3.98271828,2842.3,2841.9,0.556]
[1766042970383,0.46438023,2842.3,2841.9,0.556]
[1766042970992,0.46438023,2842.2,2841.9,0.556]
[1766042972286,0.002,2842.5,2841.9,0.556]
[1766042972471,3.52009437,2842.5,2841.9,0.556]
[1766042973091,3.52009437,2842.5,2841.9,0.557]
[1766042973563,0.002,2842.2,2841.9,0.557]
[1766042975277,0.002,2842.5,2841.9,0.557]
[1766042976082,3.98216261,2842.7,2841.9,0.557]
[1766042976254,1.3567,2842.7,2841.9,0.557]
[1766042976454,0.46438023,2842.6,2841.9,1.61444946]
[1766042976657,0.46438023,2842.6,2841.9,0.557]
[1766042978979,3.51791821,2842.6,2841.9,0.557]
[1766042979296,4.87452714,2842.7,2841.9,0.557]
[1766042979598,0.46438023,2842.6,2841.9,0.557]
[1766042980306,3.51791684,2842.6,2841.9,0.557]
[1766042985503,4.82811684,2842.6,2841.9,0.557]
[1766042986273,5.66310712,2842.6,2841.9,0.557]
[1766042986473,1.3102,2842.5,2841.9,0.557]
[1766042987302,4.82824288,2842.5,2841.9,1.61443455]
[1766042987801,4.82824288,2842.5,2841.9,0.557]
[1766042987995,0.46638023,2842.7,2841.9,0.557]
[1766042988309,3.5179728,2842.6,2841.9,0.557]
[1766042996517,5.29444651,2842.7,2841.9,0.557]
[1766042998118,3.98424651,2842.7,2841.9,0.557]
[1766042999817,8.81231279,2842.7,2841.9,0.557]
[1766042999989,9.85508231,2842.7,2841.9,0.557]
[1766043000190,1.3102,2842.6,2841.9,0.557]
[1766043001529,0.9588,2842.6,2841.9,0.557]
[1766043001688,1.3102,2842.6,2841.9,0.557]
[1766043002113,4.82821444,2842.6,2841.9,0.557]
[1766043002608,1.3102,2842.5,2841.9,0.557]
[1766043004120,3.51815367,2842.4,2841.9,0.557]
[1766043004415,4.82835367,2842.4,2841.9,0.557]
[1766043005521,1.3102,2842.4,2841.9,0.557]
[1766043005695,5.88551419,2842.6,2841.9,0.557]
[1766043005909,3.98422347,2842.7,2841.9,0.557]
[1766043006303,5.97865458,2842.7,2841.9,0.557]
[1766043007006,9.49649782,2842.7,2841.9,0.557]
[1766043007206,10.80669782,2842.7,2841.9,0.557]
[1766043007412,1.3102,2842.6,2841.9,0.557]
[1766043008025,3.5180299,2842.5,2841.9,0.557]
[1766043008389,4.8282299,2842.5,2841.9,0.557]
[1766043009025,5.90892575,2842.5,2841.9,0.557]
[1766043010029,4.59872575,2842.5,2841.9,0.557]
[1766043010238,3.5180299,2842.5,2841.9,0.557]
[1766043015538,4.8609299,2842.5,2841.9,0.557]
[1766043016034,4.57740145,2842.6,2841.9,0.557]
[1766043017252,0.002,2842.5,2841.9,0.557]
[1766043018241,0.46438023,2842.6,2841.9,0.557]
[1766043018551,3.51978623,2842.7,2841.9,0.557]
[1766043018843,3.51778623,2842.7,2841.9,0.557]
[1766043020434,0.46438023,2842.6,2841.9,0.557]
[1766043021339,1.80728023,2842.6,2841.9,0.557]
[1766043021540,0.83788023,2842.6,2841.9,0.557]
[1766043021847,0.46438023,2842.6,2841.9,0.557]
[1766043023257,3.98237251,2842.6,2841.9,0.557]
[1766043024423,5.64230394,2842.6,2841.9,0.557]
[1766043024629,6.98520394,2842.6,2841.9,0.557]
[1766043025155,10.50319622,2842.6,2841.9,0.557]
[1766043025527,11.56061214,2842.6,2841.9,0.557]
[1766043025727,11.56261214,2842.6,2841.9,0.557]
[1766043026124,2.12566121,2842.5,2841.9,0.557]
[1766043026362,0.46438023,2842.2,2841.9,0.557]
[1766043027254,3.98259028,2842.4,2841.9,0.557]
[1766043027557,0.46438023,2842.4,2841.9,0.557]
[1766043027791,1.05741592,2842.5,2841.9,0.557]
[1766043028060,3.51993172,2842.6,2841.9,0.557]
[1766043028556,0.002,2842.6,2841.9,0.557]
[1766043029463,1.3449,2842.6,2841.9,0.557]
[1766043030257,4.86291656,2842.6,2841.9,0.557]
[1766043030752,5.85336942,2842.6,2841.9,0.557]
[1766043037575,1.3429,2842.5,2841.9,0.557]
[1766043038772,4.51046942,2842.6,2841.9,0.557]
[1766043040763,1.3429,2842.5,2841.9,0.557]
[1766043042691,4.86097809,2842.5,2841.9,0.557]
[1766043045774,3.51807809,2842.5,2841.9,0.557]
[1766043052581,3.51990614,2842.6,2841.9,0.557]
[1766043052977,0.46638023,2842.7,2841.9,0.557]
[1766043053176,0.002,2842.7,2841.9,0.557]
[1766043053381,3.51790614,2842.6,2841.9,0.557]
[1766043054590,0.46638023,2842.6,2841.9,0.557]
[1766043057587,3.51970341,2842.8,2841.9,0.557]
[1766043057762,3.51970341,2842.8,2842.0,0.72536807]
[1766043058296,3.51970341,2842.8,2841.9,0.557]
[1766043058585,0.002,2842.8,2841.9,0.557]
[1766043058763,3.51966797,2842.8,2841.9,0.557]
[1766043059691,0.46438023,2842.7,2841.9,0.557]
[1766043059986,3.51966797,2842.8,2841.9,0.557]
[1766043059987,0.46638023,2842.8,2841.9,0.557]
[1766043060189,0.002,2842.8,2842.0,0.40758851]
[1766043061788,0.002,2843.0,2842.0,7.10426924]
[1766043061988,3.51735373,2843.1,2842.0,10.6229158]
[1766043062384,3.51722445,2843.2,2842.0,10.6229158]
[1766043062697,13.73112963,2843.2,2842.0,0.40758851]
[1766043062991,15.02172963,2843.2,2842.1,0.55405862]
[1766043063490,11.50450518,2843.2,2842.1,0.55405862]
[1766043063972,0.46438023,2843.1,2842.1,0.55405862]
[1766043064889,3.51741118,2843.0,2842.1,0.55405862]
[1766043065658,3.51741118,2843.0,2842.0,0.40758851]
[1766043065862,7.03482236,2843.0,2842.0,0.40758851]
[1766043067262,13.73150309,2843.0,2842.0,0.40758851]
[1766043067463,13.73150309,2843.0,2841.9,1.61428921]
[1766043068491,13.73350309,2843.0,2841.9,1.61428921]
[1766043072195,7.03682236,2843.0,2841.9,1.61428921]
[1766043077203,7.03682236,2843.0,2842.1,6.69668073]
[1766043077405,7.03682236,2843.0,2841.9,8.3087418]
[1766043077591,7.03682236,2843.0,2842.0,0.83087418]
[1766043080085,0.002,2843.4,2842.5,6.69445259]
[1766043080409,3.51709542,2843.3,2842.6,0.555]
[1766043081407,0.46638023,2843.4,2842.6,0.555]
[1766043081710,1.39184481,2843.4,2842.6,0.555]
[1766043083107,1.2923,2843.3,2842.6,0.555]
[1766043083491,1.75468023,2843.2,2842.6,0.555]
[1766043084212,0.46438023,2843.2,2842.6,0.555]
[1766043085491,0.46438023,2843.0,2842.6,0.555]
[1766043088318,3.98158459,2843.2,2842.6,0.555]
[1766043089209,0.002,2843.3,2842.6,0.555]
[1766043089409,0.46438023,2843.2,2842.6,0.555]
[1766043090122,0.46438023,2843.1,2842.6,0.555]
[1766043090285,0.46638023,2843.3,2842.6,0.555]
[1766043090486,3.98345831,2843.3,2842.6,0.555]
[1766043092215,0.002,2843.3,2842.6,0.555]
[1766043092518,0.46638023,2843.4,2842.6,0.555]
[1766043092688,0.46438023,2843.3,2842.6,0.555]
[1766043093416,3.29725622,2843.4,2842.6,0.555]
[1766043094218,7.03509068,2843.7,2842.6,0.555]
[1766043094517,8.25184057,2843.7,2842.6,0.555]
[1766043095220,0.46438023,2843.6,2842.6,0.555]
[1766043096519,0.46438023,2843.4,2842.6,0.555]
[1766043099113,3.98135287,2843.4,2842.6,0.555]
[1766043100817,3.98335287,2843.4,2842.6,0.555]
[1766043103122,7.50032551,2843.4,2842.6,0.555]
[1766043103301,3.98335287,2843.4,2842.6,0.555]
[1766043105522,7.50032551,2843.4,2842.6,0.555]
[1766043105735,8.25035806,2843.4,2842.6,0.555]
[1766043108595,9.30752805,2843.4,2842.6,0.555]